Workbook

Sheet 成绩明细
A1: 附件
A2: 2023年上半年蓬溪县事业单位公开考试招聘工作人员考试总成绩及进入体检人员名单
A3: 序号 | B3: 岗位 代码 | C3: 主管 部门 | D3: 招聘 单位 | E3: 招聘名额 | F3: 招聘专业 | G3: 准考证号 | H3: 姓名 | I3: 笔试成绩成绩 | J3: 政策性加分 | K3: 笔试总成绩 | L3: 笔试总成绩折合 | M3: 面试 成绩 | N3: 面试成绩折合 | O3: 考试总成绩 | P3: 排名 | Q3: 是否进入体检 | R3: 备注
A4: 1 | B4: 615001 | C4: 蓬溪县 人民政府 办公室 | D4: 蓬溪县政府服务热线中心 | E4: 1 | F4: 本科：汉语言文学专业、汉语言专业、应用语言学专业、秘书学专业，公共关系学专业，中国语言与文化专业、法学专业、政治学与行政学专业，经济学专业、经济统计学专业； 研究生：汉语言文字学专业、语言学及应用语言学专业、法学专业、政治学专业、行政学专业、经济统计学专业 | G4: 2615001021011 | H4: 唐雪 | I4: 66.80 | K4: =I4+J4 -> 66.80 | L4: =K4*0.6 -> 40.08 | M4: 80.06 | N4: =M4*0.4 -> 32.02 | O4: =L4+N4 -> 72.10 | P4: 1 | Q4: 是
A5: 2 | B5: 615001 | G5: 2615001031203 | H5: 刘大仟 | I5: 63.60 | K5: 63.60 | L5: =K5*0.6 -> 38.16 | M5: 80.36 | N5: 32.14 | O5: 70.30 | P5: 2
A6: 3 | B6: 615001 | G6: 2615001023012 | H6: 蒋莹 | I6: 61.20 | K6: 61.20 | L6: 36.72 | M6: 80.60 | N6: 32.24 | O6: 68.96 | P6: 3
A7: 4 | B7: 615002 | C7: 蓬溪县 商务和经济合作局 | D7: 蓬溪县 投资服务中心 | E7: 1 | F7: 本科：电气类（0806）、电子信息工程专业、材料科学与工程专业、冶金工程专业、复合材料与工程专业、机械工程专业、机械设计制造及其自动化专业、材料成型及控制工程专业； 研究生：电气工程类（0808）、机械类（0855）、材料科学与工程类（0805） | G7: 2615002033018 | H7: 赵芸 | I7: 74.70 | K7: 74.70 | L7: 44.82 | M7: 83.96 | N7: 33.58 | O7: 78.40 | P7: 1 | Q7: 是
A8: 5 | B8: 615002 | G8: 2615002013823 | H8: 曾建军 | I8: 72.30 | K8: 72.30 | L8: 43.38 | M8: 82.70 | N8: 33.08 | O8: 76.46 | P8: 2
A9: 6 | B9: 615002 | G9: 2615002013002 | H9: 云春容 | I9: 73.40 | K9: 73.40 | L9: 44.04 | M9: 78.96 | N9: 31.58 | O9: 75.62 | P9: 3
A10: 7 | B10: 615003 | C10: 蓬溪县 审计局 | D10: 蓬溪县 政府投资审计中心 | E10: 1 | F10: 本科：财政学专业、审计学专业、会计学专业、财务管理专业、法学专业； 研究生：财政学专业、审计学专业、会计学专业、财务管理专业、法学专业 | G10: 2615003012701 | H10: 周宇 | I10: 65.70 | J10: 4 | K10: 69.70 | L10: 41.82 | M10: 78.40 | N10: 31.36 | O10: 73.18 | P10: 1 | Q10: 是
A11: 8 | B11: 615003 | G11: 2615003013916 | H11: 陈荟桦 | I11: 66.50 | K11: 66.50 | L11: 39.90 | M11: 80.70 | N11: 32.28 | O11: 72.18 | P11: 2
A12: 9 | B12: 615003 | G12: 2615003013301 | H12: 高加敏 | I12: 67.30 | K12: 67.30 | L12: 40.38 | M12: 79.20 | N12: 31.68 | O12: 72.06 | P12: 3
A13: 10 | B13: 615004 | C13: 蓬溪县 审计局 | D13: 蓬溪县 政府投资审计中心 | E13: 1 | F13: 本科：土木工程专业、工程造价专业、工程管理专业； 研究生：土木工程专业、工程管理专业 | G13: 2615004014925 | H13: 夏永灿 | I13: 74.30 | K13: 74.30 | L13: 44.58 | M13: 84.50 | N13: 33.80 | O13: 78.38 | P13: 1 | Q13: 是
A14: 11 | B14: 615004 | G14: 2615004033406 | H14: 谭焜烊 | I14: 70.10 | K14: 70.10 | L14: 42.06 | M14: 81.80 | N14: 32.72 | O14: 74.78 | P14: 2
A15: 12 | B15: 615004 | G15: 2615004010516 | H15: 刘董良 | I15: 69.00 | K15: 69.00 | L15: 41.40 | M15: 79.46 | N15: 31.78 | O15: 73.18 | P15: 3
A16: 13 | B16: 615005 | C16: 蓬溪县 人力资源和社会保障局 | D16: 蓬溪县 人才交流服务中心 | E16: 1 | F16: 本科：法学类（0301）、公共管理类（1204）； 研究生：法学类（0301）、公共管理类（1204） | G16: 2615005011118 | H16: 张起诚 | I16: 72.60 | K16: 72.60 | L16: 43.56 | M16: 81.80 | N16: 32.72 | O16: 76.28 | P16: 1 | Q16: 是
A17: 14 | B17: 615005 | G17: 2615005011806 | H17: 田茂莉 | I17: 67.80 | K17: 67.80 | L17: 40.68 | M17: 78.28 | N17: 31.31 | O17: 71.99 | P17: 2
A18: 15 | B18: 615005 | G18: 2615005013627 | H18: 刘洪 | I18: 62.30 | K18: 62.30 | L18: 37.38 | M18: 81.70 | N18: 32.68 | O18: 70.06 | P18: 3
A19: 16 | B19: 615006 | C19: 蓬溪县 市场监督 管理局 | D19: 蓬溪县 市场监管事务中心 | E19: 1 | F19: 本科：计算机类（0809）、中国语言文学类（0501）、法学类（0301）； 研究生：不限 | G19: 2615006031628 | H19: 向光荣 | I19: 69.10 | K19: 69.10 | L19: 41.46 | M19: 84.70 | N19: 33.88 | O19: 75.34 | P19: 1 | Q19: 是
A20: 17 | B20: 615006 | G20: 2615006020527 | H20: 周刚 | I20: 72.50 | K20: 72.50 | L20: 43.50 | M20: 78.24 | N20: 31.30 | O20: 74.80 | P20: 2
A21: 18 | B21: 615006 | G21: 2615006011416 | H21: 陈柳宇 | I21: 66.40 | K21: 66.40 | L21: 39.84 | M21: 81.94 | N21: 32.78 | O21: 72.62 | P21: 3
A22: 19 | B22: 615007 | C22: 蓬溪县 市场监督 管理局 | D22: 蓬溪县 市场监管事务中心 | E22: 1 | F22: 不限 | G22: 2615007014226 | H22: 黄凯 | I22: 70.80 | K22: 70.80 | L22: 42.48 | M22: 79.30 | N22: 31.72 | O22: 74.20 | P22: 1 | Q22: 是
A23: 20 | B23: 615007 | G23: 2615007031920 | H23: 尹成涛 | I23: 61.40 | K23: 61.40 | L23: 36.84 | M23: 85.00 | N23: 34.00 | O23: 70.84 | P23: 2
A24: 21 | B24: 615007 | G24: 2615007021109 | H24: 谢顺添 | I24: 63.50 | K24: 63.50 | L24: 38.10 | M24: 76.80 | N24: 30.72 | O24: 68.82 | P24: 3
A25: 22 | B25: 615008 | C25: 蓬溪县 住房和城乡建设局 | D25: 蓬溪县住房和城乡建设监管事务中心 | E25: 2 | F25: 本科：法学专业、城市管理专业、工程管理专业； 研究生：法学专业、法律（法学）专业、法律（非法学）专业、工程管理专业、项目管理专业 | G25: 2615008023113 | H25: 杨蓉 | I25: 70.30 | K25: 70.30 | L25: 42.18 | M25: 83.40 | N25: 33.36 | O25: 75.54 | P25: 1 | Q25: 是
A26: 23 | B26: 615008 | G26: 2615008011704 | H26: 徐强 | I26: 72.90 | K26: 72.90 | L26: 43.74 | M26: 76.54 | N26: 30.62 | O26: 74.36 | P26: 2 | Q26: 是
A27: 24 | B27: 615008 | G27: 2615008021916 | H27: 梁朗 | I27: 63.10 | K27: 63.10 | L27: 37.86 | M27: 84.32 | N27: 33.73 | O27: 71.59 | P27: 3
A28: 25 | B28: 615008 | G28: 2615008033323 | H28: 何娟 | I28: 62.90 | K28: 62.90 | L28: 37.74 | M28: 76.98 | N28: 30.79 | O28: 68.53 | P28: 4
A29: 26 | B29: 615008 | G29: 2615008023618 | H29: 余强 | I29: 68.80 | K29: 68.80 | L29: 41.28 | R29: 缺考
A30: 27 | B30: 615008 | G30: 2615008034219 | H30: 许薇 | I30: 64.50 | K30: 64.50 | L30: 38.70 | R30: 缺考
A31: 28 | B31: 615009 | C31: 蓬溪县 农业农村局 | D31: 蓬溪县 金桥镇畜牧兽医站 | E31: 3 | F31: 专科：作物生产与经营管理专业、动物医学专业、畜牧兽医专业、动物营养与饲料专业、统计与大数据分析专业； 本科：农学专业、动物科学专业、动物医学专业、统计学专业； 研究生：作物学专业、兽医学专业、畜牧学专业、畜牧专业、兽医专业、统计学专业 | G31: 2615009033026 | H31: 冯珊珊 | I31: 58.30 | K31: 58.30 | L31: 34.98 | M31: 85.50 | N31: =M31*0.4 -> 34.20 | O31: =L31+N31 -> 69.18 | P31: 1 | Q31: 是
A32: 29 | B32: 615009 | G32: 2615009030110 | H32: 谌杰 | I32: 60.40 | K32: 60.40 | L32: 36.24 | M32: 79.10 | N32: 31.64 | O32: 67.88 | P32: 2 | Q32: 是
A33: 30 | B33: 615009 | G33: 2615009024020 | H33: 阳雨村 | I33: 56.00 | K33: 56.00 | L33: 33.60 | M33: 82.30 | N33: 32.92 | O33: 66.52 | P33: 3 | Q33: 是
A34: 31 | B34: 615009 | G34: 2615009023318 | H34: 张钰萍 | I34: 58.10 | K34: 58.10 | L34: 34.86 | M34: 77.84 | N34: 31.14 | O34: 66.00 | P34: 4
A35: 32 | B35: 615009 | G35: 2615009032007 | H35: 周晨阳 | I35: 55.10 | K35: 55.10 | L35: 33.06 | M35: 80.76 | N35: 32.30 | O35: 65.36 | P35: 5
A36: 33 | B36: 615009 | G36: 2615009021418 | H36: 郭瑶 | I36: 55.40 | K36: 55.40 | L36: 33.24 | M36: 80.18 | N36: 32.07 | O36: 65.31 | P36: 6
A37: 34 | B37: 615009 | G37: 2615009011826 | H37: 李林辉 | I37: 54.80 | K37: 54.80 | L37: 32.88 | M37: 80.78 | N37: 32.31 | O37: 65.19 | P37: 7
A38: 35 | B38: 615009 | G38: 2615009012014 | H38: 罗晓宇 | I38: 53.90 | K38: 53.90 | L38: 32.34 | M38: 81.14 | N38: 32.46 | O38: 64.80 | P38: 8
A39: 36 | B39: 615009 | G39: 2615009023906 | H39: 罗佳佳 | I39: 54.70 | K39: 54.70 | L39: 32.82 | M39: 77.74 | N39: 31.10 | O39: 63.92 | P39: 9
A40: 37 | B40: 615010 | C40: 蓬溪县 农业农村局 | D40: 蓬溪县 赤城镇畜牧兽医站 | E40: 1 | F40: 专科：畜牧兽医专业、动物营养与饲料专业、动物医学专业； 本科：动物科学专业、动物医学专业、经济动物学专业； 研究生：兽医学专业、畜牧学专业、畜牧专业、兽医专业 | G40: 2615010022018 | H40: 奉严灵 | I40: 62.40 | J40: 4 | K40: 66.40 | L40: 39.84 | M40: 80.26 | N40: 32.10 | O40: 71.94 | P40: 1 | Q40: 是
A41: 38 | B41: 615010 | G41: 2615010013703 | H41: 何鑫 | I41: 51.60 | K41: 51.60 | L41: 30.96 | M41: 70.30 | N41: 28.12 | O41: 59.08 | P41: 2
A42: 39 | B42: 615010 | G42: 2615010032903 | H42: 杜雨心 | I42: 46.90 | K42: 46.90 | L42: 28.14 | M42: 72.06 | N42: 28.82 | O42: 56.96 | P42: 3
A43: 40 | B43: 615011 | C43: 蓬溪县 农业农村局 | D43: 蓬溪县 文井镇畜牧兽医站 | E43: 1 | F43: 专科：动物医学专业、动物防疫与检疫专业、畜牧兽医专业； 本科：动物科学专业、动物医学专业、动植物检疫专业； 研究生：兽医学专业、畜牧学专业、畜牧专业、兽医专业 | G43: 2615011030527 | H43: 罗滔 | I43: 59.60 | K43: 59.60 | L43: 35.76 | M43: 82.92 | N43: 33.17 | O43: =+L43+N43 -> 68.93 | P43: 1 | Q43: 是
A44: 41 | B44: 615011 | G44: 2615011014609 | H44: 税成 | I44: 53.60 | K44: 53.60 | L44: 32.16 | M44: 76.00 | N44: 30.40 | O44: =+L44+N44 -> 62.56 | P44: 2
A45: 42 | B45: 615011 | G45: 2615011013704 | H45: 任磊 | I45: 47.80 | K45: 47.80 | L45: 28.68 | M45: 72.56 | N45: 29.02 | O45: =+L45+N45 -> 57.70 | P45: 3
A46: 43 | B46: 615012 | C46: 蓬溪县 教育和 体育局 | D46: 蓬溪县广福幼儿园 | E46: 2 | F46: 本科：学前教育专业； 研究生：学前教育专业、学前教育学专业 | G46: 1615012032803 | H46: 夏一诺 | I46: 71.50 | K46: 71.50 | L46: 35.75 | M46: 75.50 | N46: 37.75 | O46: 73.50 | P46: 1 | Q46: 是
A47: 44 | B47: 615012 | G47: 1615012043327 | H47: 廖霏 | I47: 74.50 | K47: 74.50 | L47: 37.25 | M47: 71.90 | N47: 35.95 | O47: 73.20 | P47: 2 | Q47: 是
A48: 45 | B48: 615012 | G48: 1615012044029 | H48: 补秋菊 | I48: 68.50 | K48: 68.50 | L48: 34.25 | M48: 74.00 | N48: 37.00 | O48: 71.25 | P48: 3
A49: 46 | B49: 615012 | G49: 1615012013603 | H49: 王若楠 | I49: 66.50 | K49: 66.50 | L49: 33.25 | M49: 71.70 | N49: 35.85 | O49: 69.10 | P49: 4
A50: 47 | B50: 615012 | G50: 1615012023710 | H50: 汪丹丹 | I50: 61.50 | K50: 61.50 | L50: 30.75 | M50: 66.60 | N50: 33.30 | O50: 64.05 | P50: 5
A51: 48 | B51: 615012 | G51: 1615012041325 | H51: 王珊 | I51: 62.00 | K51: 62.00 | L51: 31.00 | M51: 64.80 | N51: 32.40 | O51: 63.40 | P51: 6
A52: 49 | B52: 615013 | C52: 蓬溪县 教育和 体育局 | D52: 蓬溪县普安幼儿园 | E52: 2 | F52: 本科：学前教育专业； 研究生：学前教育专业、学前教育学专业 | G52: 1615013023912 | H52: 赵琳 | I52: 68.50 | K52: 68.50 | L52: 34.25 | M52: 84.28 | N52: 42.14 | O52: 76.39 | P52: 1 | Q52: 是
A53: 50 | B53: 615013 | G53: 1615013014427 | H53: 周小乔 | I53: 70.50 | K53: 70.50 | L53: 35.25 | M53: 80.30 | N53: 40.15 | O53: 75.40 | P53: 2 | Q53: 是
A54: 51 | B54: 615013 | G54: 1615013042614 | H54: 刘秋枫 | I54: 67.00 | K54: 67.00 | L54: 33.50 | M54: 82.70 | N54: 41.35 | O54: 74.85 | P54: 3
A55: 52 | B55: 615013 | G55: 1615013033209 | H55: 邓琬馨 | I55: 70.50 | K55: 70.50 | L55: 35.25 | M55: 75.74 | N55: 37.87 | O55: 73.12 | P55: 4
A56: 53 | B56: 615013 | G56: 1615013010325 | H56: 李雪梅 | I56: 70.50 | K56: 70.50 | L56: 35.25 | M56: 72.04 | N56: 36.02 | O56: 71.27 | P56: 5
A57: 54 | B57: 615013 | G57: 1615013012921 | H57: 蒋怡佳 | I57: 69.00 | K57: 69.00 | L57: 34.50 | M57: 67.66 | N57: 33.83 | O57: 68.33 | P57: 6
A58: 55 | B58: 615014 | C58: 蓬溪县 教育和 体育局 | D58: 蓬溪县芝溪幼儿园 | E58: 2 | F58: 本科：学前教育专业； 研究生：学前教育专业、学前教育学专业 | G58: 1615014042929 | H58: 王巧玲 | I58: 81.50 | K58: 81.50 | L58: 40.75 | M58: 73.30 | N58: 36.65 | O58: 77.40 | P58: 1 | Q58: 是
A59: 56 | B59: 615014 | G59: 1615014014109 | H59: 庄汶凤 | I59: 66.50 | K59: 66.50 | L59: 33.25 | M59: 78.40 | N59: 39.20 | O59: 72.45 | P59: 2 | Q59: 是
A60: 57 | B60: 615014 | G60: 1615014040921 | H60: 付兰 | I60: 62.50 | K60: 62.50 | L60: 31.25 | M60: 72.70 | N60: 36.35 | O60: 67.60 | P60: 3
A61: 58 | B61: 615014 | G61: 1615014012707 | H61: 谭鑫艳 | I61: 57.50 | K61: 57.50 | L61: 28.75 | M61: 75.70 | N61: 37.85 | O61: 66.60 | P61: 4
A62: 59 | B62: 615014 | G62: 1615014041009 | H62: 王希 | I62: 63.50 | K62: 63.50 | L62: 31.75 | M62: 69.30 | N62: 34.65 | O62: 66.40 | P62: 5
A63: 60 | B63: 615014 | G63: 1615014043618 | H63: 吴晓漫 | I63: 57.50 | K63: 57.50 | L63: 28.75 | M63: 67.80 | N63: 33.90 | O63: 62.65 | P63: 6
A64: 61 | B64: 615014 | G64: 1615014042721 | H64: 唐静 | I64: 57.50 | K64: 57.50 | L64: 28.75 | M64: 67.40 | N64: 33.70 | O64: 62.45 | P64: 7
A65: 62 | B65: 615014 | G65: 1615014040311 | H65: 叶丹 | I65: 59.00 | K65: 59.00 | L65: 29.50 | M65: 62.80 | N65: 31.40 | O65: 60.90 | P65: 8
A66: 63 | B66: 615015 | C66: 蓬溪县 教育和 体育局 | D66: 蓬溪县蓬南镇幼儿园 | E66: 4 | F66: 本科：学前教育专业； 研究生：学前教育专业、学前教育学专业 | G66: 1615015024501 | H66: 王茜 | I66: 70.00 | K66: 70.00 | L66: 35.00 | M66: 83.20 | N66: 41.60 | O66: 76.60 | P66: 1 | Q66: 是
A67: 64 | B67: 615015 | G67: 1615015041317 | H67: 李柳 | I67: 63.50 | K67: 63.50 | L67: 31.75 | M67: 81.22 | N67: 40.61 | O67: 72.36 | P67: 2 | Q67: 是
A68: 65 | B68: 615015 | G68: 1615015032917 | H68: 王安宁 | I68: 66.00 | K68: 66.00 | L68: 33.00 | M68: 76.56 | N68: 38.28 | O68: 71.28 | P68: 3 | Q68: 是
A69: 66 | B69: 615015 | G69: 1615015014422 | H69: 林波 | I69: 67.50 | K69: 67.50 | L69: 33.75 | M69: 74.72 | N69: 37.36 | O69: 71.11 | P69: 4 | Q69: 是
A70: 67 | B70: 615015 | G70: 1615015032909 | H70: 张甜 | I70: 66.50 | K70: 66.50 | L70: 33.25 | M70: 72.60 | N70: 36.30 | O70: 69.55 | P70: 5
A71: 68 | B71: 615015 | G71: 1615015021927 | H71: 蒲金凤 | I71: 70.00 | K71: 70.00 | L71: 35.00 | M71: 68.92 | N71: 34.46 | O71: 69.46 | P71: 6
A72: 69 | B72: 615015 | G72: 1615015013723 | H72: 陈婷 | I72: 62.00 | K72: 62.00 | L72: 31.00 | M72: 75.00 | N72: 37.50 | O72: 68.50 | P72: 7
A73: 70 | B73: 615015 | G73: 1615015044616 | H73: 陈莉 | I73: 61.50 | K73: 61.50 | L73: 30.75 | M73: 75.20 | N73: 37.60 | O73: 68.35 | P73: 8
A74: 71 | B74: 615015 | G74: 1615015012612 | H74: 邵碧玉 | I74: 61.50 | K74: 61.50 | L74: 30.75 | M74: 72.16 | N74: 36.08 | O74: 66.83 | P74: 9
A75: 72 | B75: 615015 | G75: 1615015031323 | H75: 张晶晶 | I75: 66.00 | K75: 66.00 | L75: 33.00 | M75: 66.84 | N75: 33.42 | O75: 66.42 | P75: 10
A76: 73 | B76: 615015 | G76: 1615015023003 | H76: 李建梅 | I76: 58.50 | K76: 58.50 | L76: 29.25 | M76: 68.80 | N76: 34.40 | O76: 63.65 | P76: 11
A77: 74 | B77: 615015 | G77: 1615015014717 | H77: 陈星 | I77: 58.50 | K77: 58.50 | L77: 29.25 | M77: 68.60 | N77: 34.30 | O77: 63.55 | P77: 12
A78: 75 | B78: 615016 | C78: 蓬溪县 卫生健康局 | D78: 蓬溪县 人民医院 | E78: 1 | F78: 本科：临床医学专业； 研究生：临床医学专业、儿科学专业 | G78: 4615016042502 | H78: 谯萍萍 | I78: 58.00 | K78: =I78+J78 -> 58.00 | L78: =K78*0.6 -> 34.80 | M78: 78.30 | N78: =M78*0.4 -> 31.32 | O78: =L78+N78 -> 66.12 | P78: 1 | Q78: 是
A79: 76 | B79: 615016 | G79: 4615016042419 | H79: 蔡强 | I79: 49.00 | K79: 49.00 | L79: 29.40 | M79: 75.70 | N79: =M79*0.4 -> 30.28 | O79: =L79+N79 -> 59.68 | P79: 2
A80: 77 | B80: 615017 | C80: 蓬溪县 卫生健康局 | D80: 蓬溪县 人民医院 | E80: 1 | F80: 本科：临床医学专业； 研究生：临床医学专业、外科学专业 | G80: 4615017040204 | H80: 康建军 | I80: 51.00 | K80: 51.00 | L80: 30.60 | M80: 73.40 | N80: =M80*0.4 -> 29.36 | O80: =L80+N80 -> 59.96 | P80: 1 | Q80: 是
A81: 78 | B81: 615017 | G81: 4615017042910 | H81: 周金平 | I81: 49.00 | K81: 49.00 | L81: 29.40 | R81: 缺考
A82: 79 | B82: 615018 | C82: 蓬溪县 卫生健康局 | D82: 蓬溪县 人民医院 | E82: 1 | F82: 本科：临床医学专业； 研究生：临床医学专业、外科学专业、皮肤病与性病学专业 | G82: 4615018042318 | H82: 谭发升 | I82: 57.00 | K82: 57.00 | L82: 34.20 | M82: 74.00 | N82: =M82*0.4 -> 29.60 | O82: =L82+N82 -> 63.80 | P82: 1 | Q82: 是
A83: 80 | B83: 615019 | C83: 蓬溪县 卫生健康局 | D83: 蓬溪县 人民医院 | E83: 1 | F83: 本科：临床医学专业 研究生：临床医学专业、重症医学专业、内科学专业 | G83: 4615019040808 | H83: 田会东 | I83: 61.00 | K83: 61.00 | L83: 36.60 | M83: 68.30 | N83: =M83*0.4 -> 27.32 | O83: =L83+N83 -> 63.92 | P83: 1 | Q83: 是
A84: 81 | B84: 615020 | C84: 蓬溪县 卫生健康局 | D84: 蓬溪县 人民医院 | E84: 2 | F84: 本科：临床医学专业； 研究生：临床医学专业、临床病理专业 | G84: 4615020042430 | H84: 罗小平 | I84: 59.00 | K84: 59.00 | L84: 35.40 | M84: 73.50 | N84: =M84*0.4 -> 29.40 | O84: =L84+N84 -> 64.80 | P84: 1 | Q84: 是
A85: 82 | B85: 615020 | G85: 4615020040403 | H85: 刘磊 | I85: 50.00 | K85: 50.00 | L85: 30.00 | M85: 77.20 | N85: 30.88 | O85: 60.88 | P85: 2 | Q85: 是
A86: 83 | B86: 615020 | G86: 4615020042314 | H86: 李丹 | I86: 47.00 | K86: 47.00 | L86: 28.20 | M86: 66.80 | N86: 26.72 | O86: 54.92 | P86: 3
A87: 84 | B87: 615021 | C87: 蓬溪县 卫生健康局 | D87: 蓬溪县 人民医院 | E87: 1 | F87: 本科：针灸推拿学专业； 研究生：针灸推拿学专业 | G87: 3615021043604 | H87: 舒玉春 | I87: 54.00 | K87: 54.00 | L87: 32.40 | M87: 68.20 | N87: 27.28 | O87: 59.68 | P87: 1 | Q87: 是
A88: 85 | B88: 615028 | C88: 蓬溪县 卫生健康局 | D88: 蓬溪县 荷叶乡 卫生院 | E88: 1 | F88: 专科：临床医学专业； 本科：临床医学专业 | G88: 4615028043112 | H88: 刘阳 | I88: 56.00 | K88: 56.00 | L88: 33.60 | M88: 67.40 | N88: 26.96 | O88: 60.56 | P88: 1 | Q88: 是
A89: 86 | B89: 615028 | G89: 4615028040925 | H89: 何成 | I89: 48.00 | K89: 48.00 | L89: 28.80 | M89: 70.00 | N89: 28.00 | O89: 56.80 | P89: 2
A90: 87 | B90: 615028 | G90: 4615028040601 | H90: 李春 | I90: 46.00 | K90: 46.00 | L90: 27.60 | M90: 65.50 | N90: 26.20 | O90: 53.80 | P90: 3
A91: 88 | B91: 615029 | C91: 蓬溪县 卫生健康局 | D91: 蓬溪县 任隆中心卫生院 | E91: 1 | F91: 专科：中医学专业； 本科:中医学专业 | G91: 3615029043601 | H91: 廖浩宇 | I91: 60.00 | K91: 60.00 | L91: 36.00 | M91: 78.80 | N91: 31.52 | O91: 67.52 | P91: 1 | Q91: 是
A92: 89 | B92: 615029 | G92: 3615029043608 | H92: 杨小力 | I92: 55.00 | K92: 55.00 | L92: 33.00 | M92: 82.40 | N92: 32.96 | O92: 65.96 | P92: 2
A93: 90 | B93: 615029 | G93: 3615029043602 | H93: 贺雪印 | I93: 58.00 | K93: 58.00 | L93: 34.80 | M93: 76.90 | N93: 30.76 | O93: 65.56 | P93: 3
